bitfinex/quotes_SOLUSD_20250724
["timestamp","ask_amount","ask_price","bid_price","bid_amount"]
[1753372647924,0.2,188.42,188.4,54.52585577]
[1753372647925,0.2,188.42,188.41,0.28432314]
[1753372648121,0.2,188.42,188.41,9.49800015]
[1753372648327,0.2,188.42,188.41,35.49800015]
[1753372648726,0.2,188.42,188.41,40.80557405]
[1753372649424,25.44836098,188.51,188.44,26.28432314]
[1753372649425,0.03,188.51,188.44,26.28432314]
[1753372649627,1e-08,188.51,188.5,8.91800015]
[1753372649827,0.03,188.55,188.53,26.0]
[1753372650017,0.03,188.59,188.54,57.74206858]
[1753372650214,0.03,188.59,188.58,8.91800015]
[1753372650440,0.03,188.59,188.58,39.92432314]
[1753372650765,0.03,188.59,188.58,53.86078941]
[1753372651352,0.03,188.59,188.58,48.55800015]
[1753372651965,0.03,188.59,188.55,8.63367701]
[1753372651966,16.78468397,188.58,188.55,8.63367701]
[1753372652168,16.78468397,188.58,188.56,39.88432314]
[1753372652352,0.72,188.57,188.56,0.28432314]
[1753372652555,26.13836098,188.57,188.56,0.28432314]
[1753372652752,16.78468397,188.56,188.51,8.63367701]
[1753372652952,0.72,188.55,188.53,0.28432314]
[1753372653156,16.78468397,188.55,188.54,39.86432314]
[1753372653463,16.78468397,188.55,188.54,39.72216157]
[1753372653657,16.78468397,188.54,188.42,13.84819429]
[1753372653872,16.78468397,188.51,188.45,8.63367701]
[1753372654055,0.72,188.5,188.46,39.56]
[1753372654256,0.72,188.5,188.43,5.30701056]
[1753372654257,17.50468397,188.49,188.47,39.56]
[1753372654467,16.78468397,188.49,188.48,39.56]
[1753372654670,16.78468397,188.49,188.48,39.84432314]
[1753372654991,17.50468397,188.49,188.48,39.56]
[1753372655569,0.72,188.49,188.48,39.54]
[1753372655775,8.63367701,188.51,188.48,39.54]
[1753372655960,0.72,188.49,188.48,39.68216157]
[1753372656156,0.72,188.49,188.48,39.82432314]
[1753372656663,17.50468397,188.49,188.48,39.82432314]
[1753372657665,17.50468397,188.49,188.48,39.88432314]
[1753372658059,26.13836098,188.49,188.48,0.06]
[1753372658469,31.44368221,188.49,188.48,0.06]
[1753372659475,17.50468397,188.49,188.48,0.06]
[1753372663158,31.44368221,188.49,188.48,0.06]
[1753372664472,26.13836098,188.49,188.48,0.06]
[1753372665267,16.78468397,188.49,188.48,0.06]
[1753372665464,16.78468397,188.49,188.48,0.34432314]
[1753372666080,17.50468397,188.49,188.48,0.34432314]
[1753372666479,16.78468397,188.49,188.48,0.34432314]
[1753372667374,16.78468397,188.49,188.48,39.62432314]
[1753372668781,8.63367701,188.51,188.48,44.92992585]
[1753372668782,16.78468397,188.51,188.48,44.92992585]
[1753372668983,16.78468397,188.54,188.5,0.28432314]
[1753372669166,16.78468397,188.54,188.51,39.24]
[1753372669480,16.78468397,188.52,188.51,39.52432314]
[1753372670559,11.71983662,188.57,188.52,0.28432314]
[1753372670560,16.78468397,188.56,188.52,0.28432314]
[1753372670787,16.78468397,188.56,188.52,8.91800015]
[1753372671092,16.78468397,188.56,188.54,0.28432314]
[1753372671381,2.76075393,188.57,188.55,39.2]
[1753372671578,16.78468397,188.58,188.55,39.2]
[1753372671965,18.42518397,188.59,188.55,39.2]
[1753372672160,16.81468397,188.59,188.55,47.83367701]
[1753372672367,17.53468397,188.59,188.55,47.83367701]
[1753372672558,17.53468397,188.59,188.55,8.63367701]
[1753372672769,17.53468397,188.59,188.56,39.16]
[1753372673368,17.53468397,188.59,188.56,44.46310384]
[1753372674262,17.53468397,188.59,188.55,13.9372579]
[1753372674471,25.41836098,188.56,188.5,8.63367701]
[1753372674796,16.78468397,188.54,188.51,39.12]
[1753372674967,0.72,188.54,188.51,39.12]
[1753372675571,0.72,188.54,188.52,5.30447697]
[1753372675774,16.78468397,188.56,188.52,5.30447697]
[1753372675970,16.78468397,188.56,188.52,13.93815398]
[1753372676169,16.78468397,188.57,188.52,13.93815398]
[1753372676384,0.72,188.56,188.52,13.93815398]
[1753372676582,17.50468397,188.58,188.52,13.93815398]
[1753372676894,16.78468397,188.58,188.55,8.63367701]
[1753372677092,16.81468397,188.59,188.56,47.69367701]
[1753372677782,16.81468397,188.59,188.57,5.30307047]
[1753372678973,16.81468397,188.59,188.56,44.36329293]
[1753372679488,16.81468397,188.59,188.56,13.93696994]
[1753372679666,16.81468397,188.59,188.58,5.30278926]
[1753372680184,16.81468397,188.59,188.53,0.86432314]
[1753372680185,16.81468397,188.59,188.53,0.28432314]
[1753372680389,26.14836098,188.59,188.54,44.32391428]
[1753372680726,16.78468397,188.51,188.48,0.06]
[1753372680992,8.63367701,188.54,188.49,39.02]
[1753372681178,8.63367701,188.51,188.49,39.02]
[1753372681383,17.48468397,188.5,188.49,39.02]
[1753372682164,0.7,188.54,188.5,0.28432314]
[1753372682365,16.78468397,188.52,188.49,47.65367701]
[1753372682570,17.48468397,188.52,188.49,39.02]
[1753372682894,17.48468397,188.52,188.49,44.32526892]
[1753372683297,26.11836098,188.52,188.5,39.02]
[1753372683795,26.11836098,188.52,188.49,5.30526892]
[1753372683970,26.11836098,188.52,188.51,39.02]
[1753372685698,16.78468397,188.54,188.51,39.02]
[1753372685891,16.78468397,188.56,188.52,8.91800015]
[1753372686091,10.23497701,188.58,188.53,8.63367701]
[1753372686092,16.78468397,188.57,188.53,8.63367701]
[1753372686279,16.78468397,188.57,188.54,39.02]
[1753372686484,0.7,188.56,188.54,39.02]
[1753372687296,0.7,188.55,188.54,39.02]
[1753372687980,9.33367701,188.55,188.54,39.02]
[1753372688773,9.33367701,188.55,188.51,0.28432314]
[1753372688774,9.33367701,188.55,188.51,5.30473768]
[1753372688974,1.6013,188.58,188.51,5.30473768]
[1753372688975,16.78468397,188.53,188.52,39.02]
[1753372689286,16.78468397,188.54,188.52,5.30447697]
[1753372689481,16.78468397,188.54,188.52,44.32447697]
[1753372691971,19.54531732,188.54,188.52,44.32447697]
[1753372692685,8.63367701,188.56,188.52,44.32447697]
[1753372692886,16.78468397,188.55,188.52,44.32447697]
[1753372693091,17.48468397,188.55,188.52,44.32447697]
[1753372693803,25.41836098,188.56,188.52,57.58566941]
[1753372694303,16.78468397,188.56,188.53,0.28432314]
[1753372694476,0.03,188.59,188.54,39.58]
[1753372694680,2.79027191,188.59,188.54,48.21367701]
[1753372695075,2.79027191,188.59,188.55,8.91800015]
[1753372695502,0.03,188.59,188.57,0.28432314]
[1753372695731,0.03,188.59,188.58,39.0]
[1753372696278,16.78468397,188.58,188.54,5.30391428]
[1753372696477,26.11836098,188.58,188.55,39.0]
[1753372696986,17.48468397,188.58,188.55,39.0]
[1753372697401,0.7,188.57,188.55,39.0]
[1753372697905,9.33367701,188.56,188.5,5.30503978]
[1753372698105,16.78468397,188.53,188.51,39.0]
[1753372698315,16.78468397,188.53,188.52,5.30447697]
[1753372698316,25.41836098,188.53,188.52,5.30447697]
[1753372698679,26.11836098,188.53,188.52,5.30447697]
[1753372698880,0.7,188.53,188.52,5.30447697]
[1753372699104,8.63367701,188.54,188.52,5.30447697]
[1753372699494,0.7,188.54,188.52,5.30447697]
[1753372699808,9.33367701,188.54,188.52,5.30447697]
[1753372700108,8.63367701,188.57,188.52,5.30447697]
[1753372700407,8.63367701,188.57,188.52,18.56566941]
[1753372700590,0.03,188.59,188.53,0.86432314]
[1753372700908,0.03,188.59,188.54,47.63367701]
[1753372701684,0.03,188.59,188.55,5.30363298]
[1753372702104,9.36367701,188.59,188.55,5.30363298]
[1753372702414,25.41836098,188.57,188.56,39.0]
[1753372702614,26.11836098,188.57,188.56,39.0]
[1753372703483,17.48468397,188.57,188.56,39.0]
[1753372703685,25.41836098,188.57,188.56,44.30335171]
[1753372703902,0.03,188.59,188.56,44.30335171]
[1753372703903,8.63367701,188.58,188.56,44.30335171]
[1753372704185,16.81468397,188.59,188.56,44.30335171]
[1753372704186,0.03,188.59,188.56,44.30335171]
[1753372704412,0.03,188.59,188.57,8.91800015]
[1753372704786,0.03,188.59,188.57,0.28432314]
[1753372704986,0.03,188.59,188.57,8.91800015]
[1753372705312,19.06218397,188.63,188.59,0.28432314]
[1753372705313,1e-08,188.63,188.59,0.28432314]
[1753372705625,1e-08,188.63,188.62,14.21966487]
[1753372705924,1e-08,188.63,188.62,53.74983134]
[1753372706082,1e-08,188.67,188.66,6.2473]
[1753372706291,0.03,188.7,188.69,26.28432314]
[1753372706483,0.03,188.7,188.69,73.91800015]
[1753372706725,0.03,188.7,188.69,74.49800015]
[1753372707683,0.03,188.7,188.69,79.79769806]
[1753372707885,0.03,188.7,188.64,2.0561]
[1753372708106,0.03,188.7,188.66,8.91800015]
[1753372708418,0.03,188.7,188.66,0.28432314]
[1753372708618,0.66,188.69,188.66,0.28432314]
[1753372708795,0.66,188.69,188.67,38.98]
[1753372709114,8.66367701,188.7,188.67,38.98]
[1753372709424,0.69,188.7,188.67,38.98]
[1753372709718,9.29367701,188.69,188.68,38.98]
[1753372709887,26.07836098,188.69,188.68,38.98]
[1753372710085,26.07836098,188.69,188.62,31.30165486]
[1753372710316,8.63367701,188.64,188.63,38.98]
[1753372710615,9.29367701,188.64,188.63,38.98]
[1753372710788,0.66,188.64,188.63,38.98]
[1753372710986,26.07836098,188.64,188.63,38.98]
[1753372711996,16.78468397,188.63,188.57,5.30306222]
[1753372712203,8.63367701,188.59,188.58,38.98]
[1753372712520,9.29367701,188.59,188.58,38.98]
[1753372712890,8.63367701,188.6,188.58,38.98]
[1753372713086,16.78468397,188.62,188.58,38.98]
[1753372713295,8.63367701,188.59,188.53,5.30419561]
[1753372713502,8.63367701,188.59,188.54,38.98]
[1753372713695,8.63367701,188.55,188.52,0.06]
[1753372713896,8.63367701,188.54,188.53,38.98]
[1753372714395,9.29367701,188.54,188.53,38.98]
[1753372716026,26.07836098,188.54,188.53,38.98]
[1753372720509,16.78468397,188.54,188.53,38.98]
[1753372720721,5.30310158,188.57,188.53,38.98]
[1753372720722,16.78468397,188.55,188.53,38.98]
[1753372720904,8.63367701,188.56,188.53,38.98]
[1753372721086,8.63367701,188.56,188.53,44.28411217]
[1753372721602,8.63367701,188.54,188.53,38.98]
[1753372722206,8.63367701,188.55,188.53,38.98]
[1753372722406,8.63367701,188.54,188.53,38.98]
[1753372722807,8.63367701,188.54,188.53,39.04]
[1753372723804,8.63367701,188.56,188.53,44.34419561]
[1753372730401,11.39331123,188.63,188.6,38.96]
[1753372730633,12.05331123,188.63,188.6,38.96]
[1753372731640,3.41963422,188.63,188.6,38.96]
[1753372731921,25.41836098,188.66,188.61,8.63367701]
[1753372732297,2.75915616,188.65,188.61,8.63367701]
[1753372732502,2.75915616,188.65,188.6,53.4759026]
[1753372733310,3.41915616,188.65,188.6,53.4759026]
[1753372733919,2.75915616,188.65,188.6,53.4759026]
[1753372734125,2.75915616,188.65,188.61,9.21367701]
[1753372734326,0.03,188.67,188.64,8.63367701]
[1753372734631,0.03,188.67,188.66,8.91800015]
[1753372734808,0.03,188.67,188.66,9.49800015]
[1753372735207,0.03,188.67,188.66,8.63367701]
[1753372735931,0.03,188.67,188.66,13.93421766]
[1753372736133,0.03,188.67,188.66,5.30054065]
[1753372736309,0.03,188.67,188.65,52.89443787]
[1753372737305,0.03,188.67,188.66,8.63367701]
[1753372737511,0.03,188.67,188.66,9.21367701]
[1753372738134,0.03,188.67,188.66,14.51421766]
[1753372739531,0.03,188.67,188.66,14.7985408]
[1753372740309,0.03,188.67,188.66,13.93421766]
[1753372740820,9.32367701,188.67,188.61,5.30194581]
[1753372741138,8.63367701,188.65,188.62,38.92]
[1753372741321,9.29367701,188.65,188.62,38.92]
[1753372741528,8.63367701,188.65,188.62,38.92]
[1753372742141,9.29367701,188.65,188.62,38.92]
[1753372742930,0.03,188.67,188.64,8.63367701]
[1753372743142,0.03,188.67,188.66,8.63367701]
[1753372743527,0.03,188.67,188.66,9.21367701]
[1753372744324,0.03,188.67,188.66,13.93421766]
[1753372744513,0.03,188.67,188.65,52.85426931]
[1753372745222,0.03,188.67,188.66,38.92]
[1753372746230,0.03,188.67,188.66,52.85421766]
[1753372749440,0.03,188.67,188.66,47.55367701]
[1753372749620,0.03,188.67,188.66,52.85421766]
[1753372750249,0.03,188.67,188.63,5.30138366]
[1753372750427,0.03,188.67,188.64,47.53367701]
[1753372750618,0.03,188.67,188.65,8.63367701]
[1753372750819,0.03,188.67,188.66,38.9]
[1753372751338,0.03,188.67,188.66,48.11367701]
[1753372752130,0.03,188.67,188.66,47.53367701]
[1753372752450,0.03,188.67,188.66,52.83421766]
[1753372753553,0.03,188.67,188.66,53.41421766]
[1753372753726,0.03,188.67,188.66,13.93421766]
[1753372753927,0.03,188.67,188.66,38.9]
[1753372754727,16.78468397,188.66,188.61,89.0]
[1753372755052,16.78468397,188.66,188.62,38.9]
[1753372755053,16.78468397,188.64,188.62,38.9]
[1753372755252,25.41836098,188.64,188.63,38.9]
[1753372755456,16.78468397,188.64,188.63,38.9]
[1753372755832,4.3012314,188.66,188.63,38.9]
[1753372756451,2.7618314,188.66,188.64,8.63367701]
[1753372756656,0.03,188.67,188.65,38.9]
[1753372757227,0.03,188.67,188.65,47.53367701]
[1753372757438,0.03,188.67,188.66,8.63367701]
[1753372758451,0.03,188.67,188.66,13.93421766]
[1753372764847,0.03,188.67,188.61,26.0]
[1753372765157,16.78468397,188.65,188.63,8.63367701]
[1753372765361,16.81468397,188.67,188.64,47.51367701]
[1753372765653,0.03,188.67,188.66,8.63367701]
[1753372765854,0.69,188.67,188.66,38.88]
[1753372767331,0.03,188.67,188.66,44.18054065]
[1753372770338,0.03,188.67,188.66,50.07180406]
[1753372772134,0.03,188.67,188.66,44.76054065]
[1753372772338,0.03,188.67,188.66,49.49180406]
[1753372773872,0.03,188.73,188.69,26.0]
[1753372774036,0.03,188.73,188.72,5.59558655]
[1753372774235,0.03,188.73,188.72,44.45558655]
[1753372774459,0.03,188.73,188.72,44.17126341]
[1753372775436,0.03,188.73,188.72,49.47011885]
[1753372775641,0.03,188.74,188.72,50.05011885]
[1753372775863,0.03,188.74,188.73,5.31126341]
[1753372776669,0.03,188.74,188.73,5.89126341]
[1753372777546,0.03,188.74,188.73,10.60983809]
[1753372777949,16.78468397,188.73,188.67,0.58]
[1753372778142,16.78468397,188.73,188.69,5.31126341]
[1753372778368,16.78468397,188.71,188.7,38.84]
[1753372779671,16.78468397,188.71,188.7,44.13941706]
[1753372780058,0.68,188.71,188.69,5.29948957]
[1753372780248,22.09594738,188.7,188.66,5.30054065]
[1753372780448,16.78468397,188.68,188.67,38.84]
[1753372780771,16.78468397,188.7,188.67,38.84]
[1753372780944,16.78468397,188.68,188.67,38.84]
[1753372781143,16.78468397,188.68,188.63,0.64]
[1753372781144,16.78468397,188.67,188.63,0.06]
[1753372781366,25.44239591,188.65,188.63,0.06]
[1753372781668,8.65771194,188.64,188.63,38.88]
[1753372781872,9.33771194,188.64,188.63,38.88]
[1753372782864,0.68,188.64,188.63,38.88]
[1753372783266,9.33771194,188.64,188.63,38.88]
[1753372784064,16.78468397,188.65,188.63,44.18138366]
[1753372785276,16.78468397,188.65,188.63,52.8390956]
[1753372785471,16.78468397,188.69,188.64,9.23771194]
[1753372785801,16.78468397,188.7,188.66,8.65771194]
[1753372785959,0.68,188.69,188.67,38.82]
[1753372786163,17.46468397,188.7,188.67,38.82]
[1753372787074,17.46468397,188.7,188.68,5.2999788]
[1753372787266,16.78468397,188.7,188.69,38.82]
[1753372788562,17.46468397,188.7,188.69,38.82]
[1753372789669,26.12239591,188.7,188.69,38.82]
[1753372790260,17.46468397,188.7,188.69,38.82]
[1753372791369,26.12239591,188.7,188.66,5.300265]
[1753372791680,26.12239591,188.7,188.65,0.06]
[1753372791681,8.65771194,188.67,188.65,0.06]
[1753372791862,8.65771194,188.67,188.66,38.82]
[1753372792182,9.33771194,188.67,188.66,38.82]
[1753372793968,9.33771194,188.67,188.65,0.06]
[1753372794166,16.78468397,188.7,188.66,38.8]
[1753372794482,17.46468397,188.7,188.66,38.8]
[1753372794678,2.76047626,188.69,188.66,38.8]
[1753372795078,2.76047626,188.69,188.66,47.45771194]
[1753372795462,16.78468397,188.68,188.67,5.30025971]
[1753372795858,16.78468397,188.68,188.67,13.95797165]
[1753372796071,16.78468397,188.68,188.67,5.30025971]
[1753372796680,26.12239591,188.68,188.67,38.8]
[1753372797182,17.46468397,188.68,188.67,38.8]
[1753372797975,26.12239591,188.68,188.67,38.8]
[1753372798376,17.46468397,188.68,188.67,44.10025971]
[1753372798773,16.78468397,188.68,188.67,44.10025971]
[1753372798986,16.78468397,188.68,188.67,53.33797165]
[1753372799181,0.03,188.71,188.67,66.58862093]
[1753372799384,0.03,188.71,188.69,8.65771194]
[1753372799687,0.03,188.71,188.7,52.757129]
[1753372799895,0.03,188.71,188.7,44.09941706]
[1753372800699,16.78468397,188.77,188.73,34.65771194]
[1753372800997,16.78468397,188.77,188.74,8.65771194]
[1753372801167,16.78468397,188.77,188.73,26.0]
[1753372801366,16.78468397,188.77,188.76,8.65771194]
[1753372801592,16.78468397,188.77,188.76,9.20771194]
[1753372801887,16.78468397,188.82,188.76,17.86542388]
[1753372802181,16.78468397,188.82,188.81,16.30721194]
[1753372803174,16.78468397,188.82,188.81,49.02858171]
[1753372803388,16.78468397,188.82,188.81,57.68629365]
[1753372803783,0.2,188.83,188.81,57.68629365]
[1753372803980,0.48432314,188.83,188.82,8.65771194]
[1753372805493,0.48432314,188.83,188.82,38.76]
[1753372805995,16.98468397,188.83,188.82,44.05604914]
[1753372806201,0.2,188.83,188.82,52.71376108]
[1753372806700,0.71,188.95,188.88,26.0]
[1753372806873,1.6478,188.96,188.94,8.65771194]
[1753372807208,16.92684554,188.95,188.94,8.65771194]
[1753372807502,0.71,188.95,188.92,39.52]
[1753372807873,0.71,188.95,188.83,0.28432314]
[1753372808091,0.71,188.95,188.87,8.65771194]
[1753372808321,0.71,188.95,188.88,39.54]
[1753372808593,16.78468397,188.92,188.88,39.54]
[1753372808777,16.78468397,188.9,188.88,39.54]
[1753372808968,16.78468397,188.88,188.81,18.53715374]
[1753372809167,16.78468397,188.86,188.82,39.54]
[1753372809381,16.78468397,188.84,188.82,39.54]
[1753372809580,0.71,188.83,188.82,39.54]
[1753372809800,16.78468397,188.83,188.82,53.49376108]
[1753372810168,0.71,188.9,188.82,92.73388394]
[1753372810392,0.71,188.9,188.87,8.65771194]
[1753372810597,0.71,188.9,188.88,39.5]
[1753372810802,0.71,188.89,188.88,39.5]
[1753372811090,9.36771194,188.89,188.88,39.5]
[1753372811681,0.03,188.95,188.88,74.15771194]
[1753372811882,0.03,188.95,188.92,8.65771194]
[1753372812076,0.03,188.95,188.93,39.5]
[1753372812797,0.03,188.95,188.94,8.65771194]
[1753372812798,1e-08,188.95,188.94,8.65771194]
[1753372813010,1e-08,188.95,188.94,8.94203508]
[1753372813180,1e-08,188.95,188.94,0.99432314]
[1753372813381,1e-08,188.95,188.94,35.65203508]
[1753372813577,1e-08,188.95,188.94,35.36771194]
[1753372813973,1e-08,188.95,188.94,31.2926855]
[1753372814175,17.49468398,188.95,188.94,5.2926855]
[1753372814380,26.15239592,188.95,188.94,5.2926855]
[1753372814605,16.78468397,188.94,188.92,44.95297183]
[1753372814797,0.71,188.93,188.92,5.29297183]
[1753372815298,16.78468397,188.94,188.92,5.29297183]
[1753372816004,16.78468397,188.94,188.9,39.78]
[1753372816005,16.78468397,188.94,188.91,5.29352601]
[1753372816380,16.78468398,188.95,188.91,18.52734105]
[1753372816575,16.78468398,188.95,188.91,27.18505299]
[1753372816898,0.71,189.02,188.97,26.0]
[1753372817096,0.71,189.02,188.98,48.37771194]
[1753372817287,9.36771194,189.01,188.98,39.72]
[1753372817486,8.65771194,188.99,188.94,26.0]
[1753372817690,8.65771194,188.97,188.95,39.72]
[1753372818011,0.71,188.96,188.95,45.01240539]
[1753372818384,8.68771194,188.98,188.95,45.01240539]
[1753372818694,16.78468397,188.97,188.95,45.01240539]
[1753372819400,0.74,188.98,188.95,45.01240539]
[1753372819401,0.03,188.98,188.95,45.01240539]
[1753372819603,0.03,188.98,188.95,58.19891356]
[1753372820989,0.03,188.98,188.95,45.01240539]
[1753372821284,0.03,188.98,188.95,58.19891356]
[1753372821489,0.03,188.98,188.96,13.18650817]
[1753372821703,0.03,189.02,188.97,13.18650817]
[1753372821909,0.03,189.02,189.0,13.18650817]
[1753372822126,0.03,189.02,189.01,39.7]
[1753372822408,0.03,189.02,189.01,52.88650817]
[1753372822715,0.03,189.02,189.01,39.7]
[1753372823200,0.03,189.02,189.01,44.99072535]
[1753372823710,17.52468397,189.02,189.01,5.29072535]
[1753372823909,16.78468397,189.01,188.95,13.2307822]
[1753372824118,13.92650817,189.02,188.93,18.52537976]
[1753372824119,16.78468397,188.95,188.93,18.52537976]
[1753372824406,13.18650817,188.96,188.94,39.68]
[1753372824407,16.78468397,188.96,188.94,39.68]
[1753372824591,13.89650817,189.01,188.95,13.18650817]
[1753372824794,13.18650817,189.0,188.95,13.18650817]
[1753372825001,13.18650817,189.01,188.95,13.18650817]
[1753372825215,0.71,189.0,188.95,13.18650817]
[1753372825397,0.71,189.0,188.96,18.5224386]
[1753372825602,0.71,189.0,188.97,39.66]
[1753372825906,0.71,188.99,188.97,39.66]
[1753372826105,13.89650817,188.98,188.96,5.29212531]
[1753372826300,0.71,188.97,188.96,5.29212531]
[1753372826502,17.49468397,188.97,188.96,5.29212531]
[1753372827000,30.68119214,188.97,188.96,5.29212531]
[1753372827200,42.78468397,188.94,188.93,5.29296564]
[1753372827407,56.65119214,188.94,188.91,5.29352601]
[1753372827594,16.78468397,188.92,188.91,5.29352601]
[1753372827998,16.78468397,188.92,188.91,44.89352601]
[1753372828202,16.78468397,188.92,188.91,44.87352601]
[1753372829210,16.78468397,188.92,188.91,5.29352601]
[1753372829391,16.78468397,188.89,188.88,5.57868993]
[1753372829592,30.65119214,188.89,188.88,5.57868993]
[1753372829793,30.65119214,188.89,188.88,0.28432314]
[1753372831122,30.65119214,188.89,188.87,5.29451557]
[1753372831298,30.65119214,188.88,188.86,5.29492745]
[1753372831613,26.0,188.93,188.82,13.18650817]
[1753372831614,16.78468397,188.85,188.82,5.29604914]
[1753372831806,29.97119214,188.83,188.82,44.81604914]
[1753372831997,30.65119214,188.83,188.82,44.81604914]
[1753372832199,16.78468397,188.83,188.82,58.00255731]
[1753372832795,13.86650817,188.88,188.82,71.24268017]
[1753372833126,13.86650817,188.88,188.83,13.18650817]
[1753372833424,2.2953,188.91,188.87,13.18650817]
[1753372833722,2.2953,188.91,188.88,39.5]
[1753372834306,2.2953,188.91,188.89,39.5]
[1753372834307,0.68,188.9,188.89,39.5]
[1753372834999,30.65119214,188.9,188.86,5.29492745]
[1753372835200,16.78468397,188.88,188.86,44.75492745]
[1753372835400,17.46468397,188.88,188.86,44.75492745]
[1753372836895,16.78468397,188.89,188.86,44.75492745]
[1753372837504,16.78468397,188.89,188.86,57.94143562]
[1753372837713,16.78468397,188.93,188.88,13.18650817]
[1753372837913,16.78468397,188.93,188.89,39.42]
[1753372838120,17.46468397,188.93,188.89,39.42]
[1753372838831,17.46468397,188.93,188.9,5.29380624]
[1753372839626,0.68,188.92,188.9,5.29380624]
[1753372839927,0.68,188.92,188.91,39.4]
[1753372840322,16.78468397,188.94,188.91,39.4]
[1753372840530,0.03,188.95,188.91,39.4]
[1753372840531,16.81468397,188.95,188.91,39.4]
[1753372840829,16.78468397,188.91,188.89,39.4]
[1753372841034,16.78468397,188.89,188.85,0.06]
[1753372841217,30.65119214,188.9,188.85,0.06]
[1753372841218,29.97119214,188.86,188.85,0.06]
[1753372841414,29.97119214,188.86,188.85,39.44]
[1753372841628,30.65119214,188.86,188.85,39.44]
[1753372842011,16.78468397,188.86,188.85,39.44]
[1753372842215,29.97119214,188.86,188.85,39.44]
[1753372842815,29.97119214,188.86,188.85,44.73520783]
[1753372843018,16.78468397,188.86,188.85,44.73520783]
[1753372844217,29.97119214,188.86,188.85,44.73520783]
[1753372844419,30.65119214,188.86,188.85,44.73520783]
[1753372844832,30.65119214,188.86,188.85,44.67520783]
[1753372845129,30.65119214,188.86,188.85,0.06]
[1753372845316,30.65119214,188.86,188.85,39.4]
[1753372846123,30.65119214,188.86,188.85,39.38]
[1753372846636,30.65119214,188.86,188.85,39.36]
[1753372847922,30.65119214,188.86,188.85,44.65520783]
[1753372848235,29.97119214,188.86,188.85,44.65520783]
[1753372848428,2.7572403,188.88,188.85,58.511716]
[1753372848636,0.71,188.95,188.87,13.18650817]
[1753372848935,28.75649516,188.94,188.88,39.26]
[1753372849239,8.63617155,188.9,188.88,39.26]
[1753372849737,8.63617155,188.9,188.88,44.55413503]
[1753372850134,11.39266671,188.94,188.88,53.86030658]
[1753372850532,16.78468397,188.93,188.89,8.63617155]
[1753372850735,16.78468397,188.93,188.9,47.87617155]
[1753372850911,2.75649516,188.94,188.9,39.24]
[1753372851235,0.03,188.95,188.91,0.67]
[1753372851431,0.03,188.95,188.92,39.24]
[1753372851625,0.03,188.95,188.93,5.29296564]
[1753372852723,0.03,188.95,188.89,13.93025805]
[1753372852724,9.31617155,188.94,188.89,13.93025805]
[1753372853044,0.68,188.93,188.9,39.22]
[1753372853359,16.78468397,188.92,188.91,39.22]
[1753372853643,0.03,188.95,188.92,5.29324581]
[1753372853826,0.03,188.95,188.93,8.63617155]
[1753372854025,0.03,188.95,188.94,47.85617155]
[1753372854224,0.03,188.95,188.94,48.52617155]
[1753372855122,16.78468397,188.94,188.87,8.63617155]
[1753372855323,16.78468397,188.94,188.88,39.22]
[1753372855529,25.42085552,188.94,188.88,47.85617155]
[1753372855852,25.42085552,188.94,188.89,5.2940865]
[1753372856036,26.10085552,188.94,188.89,5.2940865]
[1753372856956,16.78468397,188.94,188.9,0.67]
[1753372857148,13.22449051,188.95,188.91,39.58]
[1753372857726,13.22449051,188.95,188.91,44.87330047]
[1753372857930,13.19449051,188.94,188.91,44.87330047]
[1753372858552,16.78468397,188.91,188.86,5.29468297]
[1753372858749,16.78468397,188.88,188.86,5.29468297]
[1753372858947,16.78468397,188.88,188.87,39.52]
[1753372859134,13.86449051,188.88,188.86,5.29468297]
[1753372859461,16.78468397,188.88,188.87,39.52]
[1753372859632,16.78468397,188.88,188.87,44.81464711]
[1753372860331,16.78468397,188.88,188.85,5.35497821]
[1753372860530,17.45468397,188.88,188.86,39.54]
[1753372860731,16.78468397,188.88,188.86,39.54]
[1753372860928,1.6241,188.92,188.86,52.73449051]